Cogmind - Beta 10.1 @@@ ROGUE MODE // 2021.05.09 @ 03:51:11 Player: Farfid Result: Destroyed by L-61 Swordsman with Power Sword Performance ------------- Evolutions (9) 4500 Regions Visited (28) 5600 Robots Destroyed (433) 2165 Value Destroyed (26465) 26465 Prototype IDs (30) 600 Alien Tech Used (0) 0 Bonus (12195) 12195 TOTAL SCORE: 51525 Bonus ------- High Alert Combat Kills 2631 Follower Combat Kills 6887 Entered Garrisons 1800 Used RIF Installer 4500 A7 Reached Mainframe 300 Met R17 at Cetus 500 Friendly Fire -4423 Cogmind --------- Core Integrity 0/1600 Matter 280/300 Energy 49/100 System Corruption 9% Temperature Cool (0) Movement Core (50) Location -1/Command Parts ------- > --- POWER (2) -------- (None) > --- PROPULSION (4) --- (None) > --- UTILITY (16) ----- Relay Coupler [Swarmer] (32) Relay Coupler [Swarmer] (64) Relay Coupler [Grunt] (38) Relay Coupler [Grunt] (55) Relay Coupler [Hunter] (2) > --- WEAPON (3) ------- (None) > --- INVENTORY (4) ---- Myomer Leg Thief Drone Bay (3/3) Powered Hammer Peak State ------------ > --- POWER ------------ Quantum Reactor Light Quantum Reactor > --- PROPULSION ------- Armored Heavy Treads Armored Heavy Treads > --- UTILITY ---------- Advanced Heat Sink Advanced Cooling System Advanced Cooling System Large Storage Unit High-capacity Storage Unit High-capacity Storage Unit Advanced Terrain Scan Processor Advanced Target Analyzer Quantum Capacitor Relay Coupler [Swarmer] Relay Coupler [Grunt] Relay Coupler [Sentry] Relay Coupler [Sentry] Relay Coupler [Hunter] Relay Coupler [Behemoth] > --- WEAPON ----------- Gamma Rifle Nova Cannon Advanced Remote Datajack > --- INVENTORY -------- Light Particle Reactor Armored Wheel Matter Compressor Relay Coupler [NC] Relay Coupler [NC] Relay Coupler [Swarmer] Relay Coupler [Swarmer] Relay Coupler [Grunt] Relay Coupler [Grunt] Relay Coupler [Grunt] Relay Coupler [Grunt] Relay Coupler [Sentry] Relay Coupler [Sentry] Relay Coupler [Hunter] Relay Coupler [Hunter] Relay Coupler [Behemoth] Relay Coupler [Behemoth] Thief Drone Bay Advanced Variable Charge Gun Heavy Machine Gun Heavy Machine Gun Improved KE Penetrator Gamma Bomb Array Long-range Missile Launcher Advanced Remote Datajack Advanced Remote Datajack [Rating: 157] Favorites ----------- Power Quantum Reactor Engine Light Angular Momentum Engine Power Core Micro Fission Core Reactor Quantum Reactor Propulsion Flexi-carbon Leg Treads Armored Heavy Treads Leg Flexi-carbon Leg Wheel Armored Wheel Hover Unit Improved Hover Unit Flight Unit Xenon Bombardment Thruster Utility High-capacity Storage Unit Device Advanced Heat Sink Storage High-capacity Storage Unit Processor Advanced Terrain Scan Processor Hackware Relay Coupler [Grunt] Protection Improved Medium Armor Plating Weapon Advanced Remote Datajack Energy Gun Wave Gun Energy Cannon Enhanced Nova Cannon Ballistic Gun Gauss Rifle Ballistic Cannon Improved Light Cannon Launcher EMP Blaster Special Weapon Advanced Remote Datajack Impact Weapon Heavy Mace Slashing Weapon Scythe Special Melee Weapon Advanced Datajack Build | -11 -10 -10 -10 -9 -8 -8 -8 -8 -7 -7 -7 -6 -6 -5 -5 -5 -5 -5 -4 -4 -3 -3 -2 -2 -1 -1 -1 -1 ------- Run | Scr Mat Min Exi Min Mat Gar Mat Gar Fac Gar Fac Fac Gar Fac Gar Fac Ext Cet Fac Gar Res Gar Res Gar Acc Gar Acc Com Slots Evolved 18 | . . . . . 4 . . . 2 . . 2 . 2 . . . . 2 . 2 . 2 . 2 . . . Power 1 | . . . . . . . . . . . . . . . . . . . . . 1 . . . . . . . Propulsion 2 | . . . . . 1 . . . . . . . . . . . . . 1 . . . . . . . . . Utility 14 | . . . . . 3 . . . 2 . . 1 . 2 . . . . 1 . 1 . 2 . 2 . . . Weapon 1 | . . . . . . . . . . . . 1 . . . . . . . . . . . . . . . . Parts Attached 885 | 7 8 7 1 3 70 23 13 31 12 31 10 36 26 58 44 15 65 21 22 64 13 55 28 74 1 44 66 37 Power 65 | 2 . 2 . . 4 1 1 7 2 1 . 2 1 4 1 1 6 2 . 1 1 6 3 6 . 2 5 4 Engine 15 | 2 . 2 . . 1 . 1 3 2 1 . 1 1 . . . 1 . . . . . . . . . . . Core 20 | . . . . . 3 1 . 4 . . . 1 . 3 . 1 5 . . . . . . 1 . . . 1 Reactor 30 | . . . . . . . . . . . . . . 1 1 . . 2 . 1 1 6 3 5 . 2 5 3 Propulsion 152 | 2 . 2 . . 14 3 1 7 3 9 1 2 4 8 15 . 12 3 1 14 1 14 2 14 . 9 7 4 Treads 34 | . . . . . . . . 4 . . . . . 6 2 . 8 2 1 . . . 1 5 . . 2 3 Leg 59 | . . . . . 4 . . 3 . 4 . . 4 . 6 . 3 . . 14 1 8 . 7 . 5 . . Wheel 56 | 2 . 2 . . 10 3 1 . 3 5 1 2 . 2 7 . . 1 . . . 6 1 . . 4 5 1 Hover 1 | . . . . . . . . . . . . . . . . . 1 . . . . . . . . . . . Flight 2 | . . . . . . . . . . . . . . . . . . . . . . . . 2 . . . . Utility 367 | 1 4 . 1 3 26 4 1 8 5 10 2 13 15 15 12 9 32 7 5 34 8 20 17 34 1 25 36 19 Device 158 | . 1 . . 1 6 1 . 2 3 3 2 9 7 6 2 5 19 . 4 12 4 3 11 17 . 4 25 11 Storage 40 | 1 2 . 1 . 4 1 . . . 1 . 1 . . 2 3 1 1 . 2 4 3 3 1 . 4 5 . Processor 7 | . . . . . . . . 1 . . . . . . . . . 1 . . . . . . 1 2 2 . Hackware 80 | . . . . . 1 . 1 2 1 3 . 3 6 3 6 1 3 1 . 6 . 12 1 10 . 11 2 7 Protection 82 | . 1 . . 2 15 2 . 3 1 3 . . 2 6 2 . 9 4 1 14 . 2 2 6 . 4 2 1 Artifact . | . . . . . . . . . . . . . . . . . . . . . . . . . . . . . Weapon 301 | 2 4 3 . . 26 15 10 9 2 11 7 19 6 31 16 5 15 9 16 15 3 15 6 20 . 8 18 10 Energy Gun 101 | . . . . . 6 1 3 . . 3 3 9 . 14 3 2 8 6 8 9 . 4 2 6 . . 10 4 Energy Cannon 27 | . . 1 . . 4 1 . . . . . 1 2 1 . . 1 . 3 . 1 1 2 2 . 3 3 1 Ballistic Gun 83 | 2 2 1 . . 11 8 6 5 1 3 1 5 1 5 5 . 5 1 1 3 1 3 1 8 . 1 2 1 Ballistic Cannon 3 | . . . . . 1 . . . . . . . . 1 . . 1 . . . . . . . . . . . Launcher 28 | . 2 1 . . 4 5 . 2 . 1 . . 1 1 . 1 . 1 2 2 . 3 . . . 1 . 1 Special Weapon 41 | . . . . . . . . . 1 4 3 3 2 5 6 2 . . . . . 1 1 4 . 3 3 3 Impact Weapon 1 | . . . . . . . . . . . . . . . 1 . . . . . . . . . . . . . Slashing Weapon 7 | . . . . . . . . . . . . 1 . 4 1 . . . . . . 1 . . . . . . Piercing Weapon . | . . . . . . . . . . . . . . . . . . . . . . . . . . . . . Special Melee Weapon 10 | . . . . . . . 1 2 . . . . . . . . . 1 2 1 1 2 . . . . . . Unidentified Prototypes 18 | . . . . 1 1 . 4 . . . . . . 1 . 1 . . 1 . . 1 2 . . 1 2 3 Parts Lost 168 | . 1 1 . . 14 3 2 11 1 4 2 8 1 11 . 2 8 . 5 11 . 4 6 6 . 5 23 39 Power 21 | . . 1 . . 2 1 . 3 . . . 1 . . . . . . . 1 . 1 1 2 . 1 2 5 Propulsion 33 | . . . . . 6 . 2 3 . 1 1 1 . 2 . . 1 . . 2 . . 2 . . . 8 4 Utility 58 | . 1 . . . 2 1 . 3 . 2 1 3 . 2 . 1 4 . 2 3 . 2 2 1 . 2 7 19 Weapon 56 | . . . . . 4 1 . 2 1 1 . 3 1 7 . 1 3 . 3 5 . 1 1 3 . 2 6 11 Highest Loss Streak 35 | . 1 1 . . 6 2 1 7 1 4 1 6 1 5 . 1 3 . 3 3 . 2 3 2 . 2 15 35 Average Slot Usage (%) 93 | . 96 99 100 100 96 99 97 89 97 97 95 93 98 93 94 99 99 94 86 89 93 94 93 91 81 87 88 86 Engine 1 | . 14 13 14 14 2 . 4 4 7 7 7 5 2 1 . . . . . . . . . . . . . . Core 1 | . . . . . 5 9 4 4 . . . . 3 3 3 . 5 . . . . . . . . . . 1 Reactor 3 | . . . . . . . . . . . . . . . 1 4 . 4 5 5 9 8 8 7 8 8 7 6 Treads 4 | . . . . . . . . 19 18 . . . . 6 6 . 11 11 10 1 . . . 5 8 5 4 7 Leg 6 | . . . . . 11 19 . 1 . 9 . . 19 4 1 . . . . 17 19 16 . 4 . 3 . . Wheel 5 | . 28 27 28 28 14 6 25 1 4 11 20 18 . 1 4 17 4 . . . . 2 16 1 . 2 5 . Device 9 | . 2 14 14 8 8 9 1 . 4 7 9 15 8 8 5 5 9 5 9 10 8 12 10 11 16 12 13 15 Storage 17 | . 14 14 14 14 18 20 27 27 23 23 23 20 20 17 17 18 17 19 15 15 17 15 18 16 12 13 12 11 Hackware 18 | . . . . . 3 . 7 10 15 13 10 10 17 23 28 32 21 21 19 13 19 19 21 26 24 22 29 27 Protection 6 | . 8 . . 6 12 15 9 4 7 7 7 1 5 6 5 . 6 10 10 11 4 3 3 3 . 3 3 5 Energy Gun 4 | . . . . . 4 1 8 1 . 2 2 6 . 7 4 5 9 17 9 6 2 3 3 2 4 . 2 3 Energy Cannon 1 | . . 14 14 14 2 . . . . . . . 1 . . . . . 1 . 1 1 4 1 4 6 4 3 Ballistic Gun 5 | . 27 13 14 14 9 12 8 14 14 6 6 6 11 3 5 5 5 . 2 3 7 4 . 3 . . . . Special Weapon 2 | . . . . . . . . . . 4 5 5 5 3 4 4 1 . . . . 2 4 3 4 3 3 3 Naked Turns . | . . . . . . . . . . . . . . . . . . . . . . . . . . . . . Heaviest Build 180 | 13 26 31 47 50 69 102 102 102 104 105 102 111 111 132 113 113 126 130 134 140 158 158 172 152 144 180 171 170 Greatest Support 160 | 32 32 32 32 32 54 54 42 60 60 51 44 38 60 97 97 36 81 103 160 160 85 85 48 120 120 120 120 120 Greatest Overweight (x) 34 | . . . 1 1 6 2 3 30 6 6 3 3 9 12 34 3 9 1 1 6 1 12 4 5 1 14 12 8 Average Overweight (x) 1 | . . . . 1 1 1 2 2 1 1 2 2 1 1 2 2 1 1 . . 1 1 3 1 1 1 2 1 Largest Inventory Capacity 26 | 6 10 10 12 12 18 26 26 26 26 26 26 26 26 26 26 26 26 26 26 26 26 26 26 26 26 26 26 26 Average Capacity 24 | 4 7 10 10 12 16 19 26 26 26 26 26 26 26 26 26 26 26 26 26 26 26 26 26 26 26 26 26 25 Most Carried 26 | 4 9 10 12 12 18 26 26 26 26 26 26 26 26 26 26 26 26 26 26 26 26 26 26 26 26 26 26 26 Average Carried 24 | 1 6 9 10 11 16 18 25 24 25 25 25 25 25 25 25 25 25 25 25 25 25 25 25 25 26 25 25 24 Final Capacity 26 | 6 10 10 12 12 18 26 26 26 26 26 26 26 26 26 26 26 26 26 26 26 26 26 26 26 26 26 26 4 Final Carried 26 | . 9 10 12 12 18 26 26 26 26 26 26 26 26 26 26 26 26 26 26 26 26 26 26 26 26 26 26 3 Class Distribution -------------------- 60% | Botlord-Mutant 18% | Bothacker-Mutant 8% | Mutant 7% | Scavenger-Mutant Dominant Class ---------------- Mutant | -10/Materials Scavenger-Mutant | -10/Mines Scavenger-Mutant | -10/Exiles Mutant | -9/Mines Mutant | -8/Materials Mutant | -8/Garrison Bothacker-Mutant | -8/Materials Bothacker-Mutant | -8/Garrison Bothacker-Mutant | -7/Factory Bothacker-Mutant | -7/Garrison Bothacker-Mutant | -7/Factory Bothacker-Mutant | -6/Factory Botlord-Mutant | -6/Garrison Botlord-Mutant | -5/Factory Botlord-Mutant | -5/Garrison Botlord-Mutant | -5/Factory Scavenger-Mutant | -5/Extension Botlord-Mutant | -5/Cetus Botlord-Mutant | -4/Factory Botlord-Mutant | -4/Garrison Botlord-Tank | -3/Research Botlord-Mutant | -3/Garrison Botlord-Mutant | -2/Research Botlord-Mutant | -2/Garrison Botlord-Mutant | -1/Access Botlord-Mutant | -1/Garrison Botlord-Mutant | -1/Access Botlord-Mutant | -1/Command Resources | -11 -10 -10 -10 -9 -8 -8 -8 -8 -7 -7 -7 -6 -6 -5 -5 -5 -5 -5 -4 -4 -3 -3 -2 -2 -1 -1 -1 -1 ----------- Run | Scr Mat Min Exi Min Mat Gar Mat Gar Fac Gar Fac Fac Gar Fac Gar Fac Ext Cet Fac Gar Res Gar Res Gar Acc Gar Acc Com Matter Collected 17263 | 193 108 323 . . 1314 685 214 680 314 455 246 523 713 1002 975 357 1029 235 419 938 212 1063 412 1505 . 876 1721 751 Remotely 376 | . . . . . . . . . . . . 101 . . . . 20 . . . . . . . . . 255 . Salvage Created 26235 | . 277 336 . . 1747 856 662 898 438 852 547 890 1020 1295 1634 508 1984 476 1437 530 207 1098 619 1985 . 1733 2808 1398 Parts 1098 | . 22 28 . . 99 53 26 49 23 28 26 36 29 43 63 15 64 17 64 18 6 43 28 87 . 50 122 59 Haulers Intercepted 14 | . 1 . . . 2 . 1 . . . 4 . . 1 . . 2 . . . . . . . . . 3 . Recyclers Shooed 27 | . . 1 . . 2 . . . 1 . . 2 . 3 . 7 3 . . . 1 . 1 . . . 1 5 Parts Field Recycled . | . . . . . . . . . . . . . . . . . . . . . . . . . . . . . Retrieved Matter . | . . . . . . . . . . . . . . . . . . . . . . . . . . . . . Parts Self-Destructed . | . . . . . . . . . . . . . . . . . . . . . . . . . . . . . Prevented . | . . . . . . . . . . . . . . . . . . . . . . . . . . . . . Kills | -11 -10 -10 -10 -9 -8 -8 -8 -8 -7 -7 -7 -6 -6 -5 -5 -5 -5 -5 -4 -4 -3 -3 -2 -2 -1 -1 -1 -1 ------- Run | Scr Mat Min Exi Min Mat Gar Mat Gar Fac Gar Fac Fac Gar Fac Gar Fac Ext Cet Fac Gar Res Gar Res Gar Acc Gar Acc Com Combat Hostiles Destroyed 337 | . 10 9 . . 34 24 9 25 5 10 6 10 12 10 15 4 11 9 17 9 2 15 8 21 . 18 30 14 Melee 6 | . . . . . . . . . . . . . . 3 . . . . . 2 . . . 1 . . . . Guns 159 | . 4 2 . . 16 11 8 12 5 6 6 9 4 7 13 1 8 2 7 6 1 8 1 17 . . 4 1 Cannons 56 | . . 2 . . 6 . . . . . . . 1 . . . . . 4 . 1 . 4 1 . 13 17 7 AOE 79 | . 6 5 . . 12 13 1 12 . 2 . . 3 . . 3 . 5 6 . . 7 . . . . 1 3 Classes Destroyed 18 | . 5 3 . . 4 . 1 . 1 1 . . . . . . 1 . 1 1 . . . . . . . . Worker 13 | . 1 . . . 3 . . . . . 1 1 . 1 . . . . 3 . . . . . . . 3 . Builder 7 | . 1 . . . . . 1 . 1 . . . . . . . 1 . 3 . . . . . . . . . Tunneler 6 | . . 2 . . 2 . . . . . . . . 1 . 1 . . . . . . . . . . . . Hauler 14 | . 1 . . . 2 . 1 . . . 4 . . 1 . . 2 . . . . . . . . . 3 . Recycler 25 | . . 1 . . 3 . 1 . 2 . . 2 . 3 . 2 4 . 2 . 1 . . . . . 2 2 Mechanic 1 | . . . . . . . . . . . . . . . . . . . 1 . . . . . . . . . Operator 3 | . . . . . 2 . . . . . . . . . . . 1 . . . . . . . . . . . Watcher 9 | . . . . . 1 . . . . . . 1 . 1 . . 2 . 1 . . . . . . . 1 2 Swarmer 71 | . 3 5 . . 10 13 . 11 . . . 4 2 1 . . . 3 . . . 8 1 6 . . 4 . Saboteur 3 | . . . . . . . . . . . . . . . . . . . . 2 1 . . . . . . . Grunt 149 | . 7 2 . . 12 9 4 8 . 7 6 3 12 2 9 3 4 5 11 4 1 6 . 13 . 14 6 1 Brawler 13 | . . . . . . . 2 3 1 . . . 2 1 3 . . . 1 . . . . . . . . . Duelist 13 | . . . . . 1 . 2 . 1 . . 1 1 . . . . . 3 1 . 1 . . . . . 2 Sentry 35 | . . 2 . . 9 2 1 3 . 1 . 1 . . 2 . 7 . . 1 . . 4 . . 2 . . Specialist 2 | . . . . . . . . . . 2 . . . . . . . . . . . . . . . . . . Hunter 20 | . . . . . 2 . . . 1 1 . . . 2 1 . 1 . . 1 . . . . . 1 6 4 Programmer 44 | . . . . . . . . . 2 1 1 2 . 5 1 1 . . 2 . . 1 3 3 . 1 14 7 Behemoth 2 | . . . . . . . . . . . . . . . . . 1 . . . . . . 1 . . . . Cetus Guard 2 | . . . . . . . . . . . . . . . . . . 2 . . . . . . . . . . Thug 1 | . . . . . . . . . . . . . . . . . . . 1 . . . . . . . . . Best Kill Streak 10 | . 8 5 . . 9 4 6 5 2 3 3 4 3 2 4 4 4 5 10 2 1 3 3 3 . 4 5 5 Combat Bots Only 7 | . 7 5 . . 6 4 4 5 2 3 2 4 3 2 4 3 2 5 4 2 1 3 3 3 . 4 3 5 Max Kills in Single Turn 8 | . 2 5 . . 2 2 2 4 1 1 1 2 2 1 1 1 1 5 8 1 1 2 1 1 . 1 2 3 Gunslinging 1 | . . . . . . . . . . . . 1 . . . . . . . . . . . . . . . . Exploded 5 | . 2 5 . . 2 2 1 4 . 1 . . 2 . . 1 . 5 3 . . 2 . . . . 1 3 Melee 1 | . . . . . . . . . . . . . . 1 . . . . . 1 . . . 1 . . . . Uniques/NPCs Destroyed . | . . . . . . . . . . . . . . . . . . . . . . . . . . . . . Combat | -11 -10 -10 -10 -9 -8 -8 -8 -8 -7 -7 -7 -6 -6 -5 -5 -5 -5 -5 -4 -4 -3 -3 -2 -2 -1 -1 -1 -1 -------- Run | Scr Mat Min Exi Min Mat Gar Mat Gar Fac Gar Fac Fac Gar Fac Gar Fac Ext Cet Fac Gar Res Gar Res Gar Acc Gar Acc Com Damage Taken 34992 | . 420 155 . . 1929 699 561 1313 423 617 233 1081 614 3130 608 483 1535 290 2749 1566 291 1632 1408 1420 . 1717 4851 5267 Core 4076 | . 130 31 . . 187 51 75 133 32 86 34 198 31 323 58 89 110 . 225 109 74 203 150 110 . 57 539 1041 Absorbed by Shields 835 | . . . . . . . . 13 . 11 . . 12 . . . 24 36 . 46 . . . 480 . 128 . 85 Reduced by Siege Mode 117 | . . . . . . . . . . . . . . . . . . . 77 . . . . . . . 31 9 Core Remaining (%) 64 | 100 . . . 35 . . . 18 . . 78 . 73 . . . . 42 . 70 . 78 . 82 . . . . Volleys Fired 1892 | . 22 16 . . 123 69 30 70 25 58 38 63 92 86 95 30 93 20 61 79 11 100 61 170 . 129 247 104 Largest 3 | . 2 2 . . 2 2 2 2 2 2 2 3 2 2 2 2 3 2 3 3 3 3 2 2 . 1 2 2 Hottest 240 | . 40 80 . . 123 88 90 90 48 100 105 120 75 141 162 111 147 240 206 209 147 114 195 195 . 120 240 240 Shots Fired 2655 | . 39 30 . . 198 94 58 119 49 75 47 118 128 117 145 45 176 38 109 128 26 135 63 230 . 128 256 104 Gun 1807 | . 34 14 . . 127 55 58 100 48 63 43 110 74 93 117 34 161 37 71 126 23 97 17 172 . 25 71 37 Cannon 457 | . . 14 . . 59 2 . . . . . 1 31 . . . . . 34 . 3 26 33 32 . 66 127 29 Launcher 106 | . 5 2 . . 12 37 . 19 . 6 . . 5 . . 4 . 1 4 2 . 5 . . . 3 . 1 Special 285 | . . . . . . . . . 1 6 4 7 18 24 28 7 15 . . . . 7 13 26 . 34 58 37 Kinetic 938 | . 34 14 . . 107 47 14 79 48 22 34 55 74 20 51 15 58 . 44 36 19 51 . 98 . . 13 5 Thermal 702 | . . 14 . . 53 10 2 . . . . 18 . 24 84 19 38 1 40 63 7 36 29 32 . 66 136 30 Explosive 36 | . 5 2 . . 5 8 . 2 . . . . . . . 4 . 1 4 . . 5 . . . . . . Electromagnetic 712 | . . . . . 33 29 42 38 . 47 9 38 36 49 . . 65 36 21 29 . 36 21 74 . 28 49 32 Robot Hit Streak 30 | . 5 18 . . 12 10 11 18 11 15 10 10 17 21 23 9 20 12 25 12 4 13 9 30 . 20 16 22 Robot Miss Streak 5 | . 4 2 . . 3 3 5 3 2 3 4 4 3 5 1 3 4 4 3 3 4 3 4 5 . 4 5 3 Penetration Max 1 | . . . . . 1 . . . . . 1 . 1 . 1 . 1 . . 1 . 1 . . . . . . Secondary Targets 14 | . 1 . . . . 1 1 2 . . 1 1 . . . . . . 1 2 . 2 . 2 . . . . Max Gunslinging Chain 1 | . 1 . . . . 1 1 1 . . 1 1 . . . . . . 1 1 . 1 . 1 . . . . Capacitor 203 | . . . . . . . . . . . . . . . . . . . . . . . . 24 . 91 88 . Shots Hit Robots 1730 | . 21 20 . . 140 37 44 72 34 40 31 69 70 104 108 31 123 28 81 77 12 67 45 147 . 90 157 82 Core Hits 803 | . 20 17 . . 68 41 27 46 13 24 16 25 26 34 39 14 47 24 62 21 7 39 10 45 . 50 43 45 Critical Hits 23 | . 1 . . . . . 1 . . 1 . 2 1 . 6 . 5 . 2 1 1 . . . . 1 1 . Critical Kills 9 | . . . . . . . . . . . . 2 . . 3 . 2 . . . 1 . . . . . 1 . Critical Parts Destroyed 10 | . 1 . . . . . . . . 1 . . 1 . 3 . . . 2 1 . . . . . 1 . . Melee Attacks 54 | . . . . . . . 2 2 . . . 1 . 20 5 . . 1 2 9 1 11 . . . . . . Impact . | . . . . . . . . . . . . . . . . . . . . . . . . . . . . . Slashing 27 | . . . . . . . . . . . . 1 . 20 5 . . . . . . 1 . . . . . . Piercing . | . . . . . . . . . . . . . . . . . . . . . . . . . . . . . Sneak Attacks 2 | . . . . . . . . . . . . . . 2 . . . . . . . . . . . . . . Combat Hostiles 1 | . . . . . . . . . . . . . . 1 . . . . . . . . . . . . . . Follow-up Attacks . | . . . . . . . . . . . . . . . . . . . . . . . . . . . . . Damage Inflicted 49618 | . 875 592 . . 3782 1967 732 2374 562 1018 820 1312 1888 2631 2651 1220 2909 1083 4020 1417 350 2425 1492 2981 . 3018 4943 2556 Guns 26568 | . 219 98 . . 1664 437 636 1148 562 651 775 1312 783 1796 1945 665 2909 516 1226 1417 276 1571 381 2873 . 392 1419 897 Cannons 10482 | . . 231 . . 970 . . . . . . . 593 . . . . . 731 . 74 . 1111 101 . 1919 3524 1228 Explosions 11088 | . 656 263 . . 1148 1530 96 1226 . 367 45 . 512 153 . 555 . 567 2063 . . 769 . . . 707 . 431 Melee 1193 | . . . . . . . . . . . . . . 682 426 . . . . . . 85 . . . . . . Ramming 7 | . . . . . . . . . . . . . . . . . . . . . . . . 7 . . . . Kinetic 12648 | . 219 98 . . 1340 388 146 819 562 184 663 838 783 389 853 285 960 . 846 489 205 839 . 1330 . . 320 92 Thermal 15463 | . . 231 . . 1040 102 96 301 . 161 45 223 314 720 1372 380 670 . 959 708 145 202 982 101 . 1919 3524 1268 Explosive 6599 | . 656 263 . . 653 848 . 379 . . . . . . . 555 . 567 1909 . . 769 . . . . . . Electromagnetic 13708 | . . . . . 749 629 490 875 . 673 112 251 791 840 . . 1279 516 306 220 . 530 510 1543 . 1099 1099 1196 Impact . | . . . . . . . . . . . . . . . . . . . . . . . . . . . . . Slashing 1193 | . . . . . . . . . . . . . . 682 426 . . . . . . 85 . . . . . . Piercing . | . . . . . . . . . . . . . . . . . . . . . . . . . . . . . Highest Corruption 19 | . . . . . 4 5 10 14 2 2 2 . . 8 8 16 15 2 9 9 . 1 7 9 . 4 19 10 Average Corruption 6 | . . . . . 2 4 8 12 1 2 2 . . 6 8 9 7 1 4 9 . 1 4 5 . 3 9 7 Corruption Purged 56 | . . . . . . . . . . . . . . . . 2 15 . . . . . . 11 . . 18 10 Effects 889 | . . . . . 31 37 18 89 2 19 8 . . 49 94 33 78 4 31 102 . 5 14 81 . 66 92 36 Message Errors 179 | . . . . . 8 5 2 9 . 5 2 . . 8 12 7 17 3 9 22 . 2 3 17 . 22 19 7 Matter Fused 168 | . . . . . 5 13 5 15 . . . . . 12 22 8 13 . . 20 . . 3 13 . 17 19 3 Heat Flow Errors 85 | . . . . . 3 2 . 11 . 3 2 . . 5 12 1 8 . 1 8 . . . 9 . 9 7 4 Energy Discharges 101 | . . . . . 4 5 . 12 1 3 1 . . 4 13 4 8 . 3 16 . . 1 5 . 10 8 3 Parts Rejected 7 | . . . . . . 1 . 1 . . . . . 1 2 . . . . . . . . . . 1 1 . Data Loss (minor) 105 | . . . . . 4 1 2 7 1 3 2 . . 11 16 5 9 1 5 12 . 1 4 9 . 2 9 1 Data Loss (major) 34 | . . . . . . 2 . 6 . . . . . 2 4 . 4 . . 4 . . . 7 . . 3 2 Misfires 24 | . . . . . . 2 1 5 . . . . . . 3 . 2 . . 5 . . . 4 . . 2 . Alerts 3 | . . . . . . . . 3 . . . . . . . . . . . . . . . . . . . . Misdirections 22 | . . . . . . . 2 9 . . . . . . . 4 3 . . . . . . . . . 4 . Targeting Errors 134 | . . . . . 6 5 5 8 . 3 1 . . 6 8 3 14 . 9 10 . 2 3 14 . 4 19 14 Weapon Failures 27 | . . . . . 1 1 1 3 . 2 . . . . 2 1 . . 4 5 . . . 3 . 1 1 2 Overload Shots 11 | . . . . . . . . . . . . . . . . . . 1 . . . . . . . . 9 1 Overflow Damage 1045 | . 5 . . . 71 138 27 31 . . . 102 . 74 8 . . 2 41 . . 53 154 . . 45 235 59 Projectiles 530 | . . . . . 24 . . . . . . . . . . . . . 13 . . . 154 . . 45 235 59 Explosions 433 | . 5 . . . 47 138 27 31 . . . 102 . . . . . 2 28 . . 53 . . . . . . Melee 82 | . . . . . . . . . . . . . . 74 8 . . . . . . . . . . . . . Knockbacks . | . . . . . . . . . . . . . . . . . . . . . . . . . . . . . Impact . | . . . . . . . . . . . . . . . . . . . . . . . . . . . . . Kinetic . | . . . . . . . . . . . . . . . . . . . . . . . . . . . . . Secondary . | . . . . . . . . . . . . . . . . . . . . . . . . . . . . . Self-Inflicted Damage 955 | . . 20 . . 161 90 66 91 . 40 21 271 3 37 . 34 . . . . . 56 . 3 . 62 . . Shots 26 | . . 1 . . 4 5 2 4 . 1 1 3 1 1 . 1 . . . . . 1 . . . 1 . . Rammed 1 | . . . . . . . . . . . . . . . . . . . . . . . . 1 . . . . Targets Rammed 1 | . . . . . . . . . . . . . . . . . . . . . . . . 1 . . . . Kicked . | . . . . . . . . . . . . . . . . . . . . . . . . . . . . . Crushed . | . . . . . . . . . . . . . . . . . . . . . . . . . . . . . Highest Temperature 348 | . 24 1 . . 237 293 276 267 7 312 237 52 224 232 304 230 348 148 176 234 116 211 6 265 . 207 305 178 Average Temperature 62 | . 7 1 . . 37 79 59 65 2 95 88 12 77 41 51 40 75 58 31 80 55 52 4 93 . 51 85 62 Received Heat Transfer 4282 | . 174 72 . . 486 162 216 423 48 150 108 45 108 399 108 9 268 36 399 273 9 138 72 194 . 115 108 162 Effects 5 | . . . . . . 3 . . . . . . . . . . 2 . . . . . . . . . . . Interference 5 | . . . . . . 3 . . . . . . . . . . 2 . . . . . . . . . . . Siege Activations 5 | . . . . . . . . . . . . . . . . . . 1 2 . . . . . . . 1 1 Total Turns 89 | . . . . . . . . . . . . . . . . . . 8 47 . . . . . . . 19 15 Longest Duration 30 | . . . . . . . . . . . . . . . . . . 8 30 . . . . . . . 19 15 Robots Corrupted 48 | . . . . . . 2 . 1 . 4 . 1 4 1 . . 6 2 . 1 . 3 3 6 . 4 4 6 Combat Hostiles 28 | . . . . . . . . 1 . 2 . 1 4 . . . 3 2 . 1 . . 3 2 . 2 4 3 Parts Fried 78 | . . . . . 2 3 2 5 . 5 . 1 7 5 . . 7 2 . 2 . 5 4 10 . 2 8 8 Impact Corruptions . | . . . . . . . . . . . . . . . . . . . . . . . . . . . . . Robots Melted 8 | . . . . . . . . . . . . . . . 1 . . . . . . . . . . 3 4 . Combat Hostiles 8 | . . . . . . . . . . . . . . . 1 . . . . . . . . . . 3 4 . Parts Melted 46 | . . 1 . . . . . . 1 . . 2 . 2 3 . 2 . 1 1 . 1 3 . . 10 17 2 Heat Transferred 18005 | . . 481 . . 2028 248 100 300 . 175 50 459 250 940 2215 555 1036 . 1062 1544 185 296 703 74 . 1628 2701 975 Parts Sabotaged 9 | . . . . . . . . . . . . . . . . . . . . 9 . . . . . . . . Parts Stolen . | . . . . . . . . . . . . . . . . . . . . . . . . . . . . . Parts Stripped . | . . . . . . . . . . . . . . . . . . . . . . . . . . . . . Power Chain Reactions 24 | . . . . . 3 4 2 4 . 3 1 . 3 2 . . . . 1 . . . . . . 1 . . Missiles Intercepted . | . . . . . . . . . . . . . . . . . . . . . . . . . . . . . Alert | -11 -10 -10 -10 -9 -8 -8 -8 -8 -7 -7 -7 -6 -6 -5 -5 -5 -5 -5 -4 -4 -3 -3 -2 -2 -1 -1 -1 -1 ------- Run | Scr Mat Min Exi Min Mat Gar Mat Gar Fac Gar Fac Fac Gar Fac Gar Fac Ext Cet Fac Gar Res Gar Res Gar Acc Gar Acc Com Peak Influence 1195 | . 318 233 . . 508 1188 837 1195 748 919 672 300 534 410 738 553 247 694 832 1078 657 1062 597 679 407 851 557 297 Initial 627 | . . 123 . . . 115 579 540 627 424 482 233 154 280 91 387 226 101 304 582 606 492 597 263 407 325 510 166 Average 500 | . 125 172 . . 223 818 656 908 661 772 548 148 396 233 544 389 97 333 576 843 620 924 331 530 407 647 131 152 Maximum Alert Level 4 | . 1 1 . . 2 4 3 4 3 3 2 1 2 2 3 2 1 2 3 3 2 3 2 2 2 3 2 1 Low Security (%) 21 | 100 75 58 . 100 49 5 . . . . . 78 6 28 5 . 88 29 . . . . . . . . 76 66 Level 1 20 | . 24 41 . . 32 10 . . . . . 21 40 70 15 84 11 50 13 . . . 88 19 . 13 10 33 Level 2 30 | . . . . . 17 18 67 11 78 21 100 . 53 . 71 15 . 20 49 31 100 11 11 80 100 25 13 . Level 3 25 | . . . . . . 28 32 72 21 78 . . . . 7 . . . 37 68 . 88 . . . 61 . . Level 4 2 | . . . . . . 36 . 15 . . . . . . . . . . . . . . . . . . . . Level 5 . | . . . . . . . . . . . . . . . . . . . . . . . . . . . . . High Security . | . . . . . . . . . . . . . . . . . . . . . . . . . . . . . Max Security . | . . . . . . . . . . . . . . . . . . . . . . . . . . . . . Squads Dispatched 54 | . 2 . . . 3 . 2 . 4 . 3 2 . 9 . 2 1 . 8 . 1 . 1 . 1 . 13 2 Investigation 7 | . 2 . . . . . . . . . . 1 . 2 . . . . . . . . . . 1 . 1 . Extermination 14 | . . . . . . . . . 1 . . 1 . 3 . 1 . . 1 . . . 1 . . . 4 2 Reinforcement 14 | . . . . . 2 . 1 . . . 3 . . 3 . . 1 . 3 . . . . . . . 1 . Assault 5 | . . . . . . . . . 1 . . . . . . 1 . . 1 . 1 . . . . . 1 . Garrison 14 | . . . . . 1 . 1 . 2 . . . . 1 . . . . 3 . . . . . . . 6 . Intercept . | . . . . . . . . . . . . . . . . . . . . . . . . . . . . . Construction Impeded 4 | . . . . . . . . . . . 1 . . 1 . . . . 2 . . . . . . . . . Haulers Reinforced 4 | . . . . . . . . . . . 2 . . 1 . . . . . . . . . . . . 1 . Alert ID Control Effect 74 | . . . . . . . . . . . . . . . . . . . . 5 . 12 . 4 . 21 20 12 Stealth | -11 -10 -10 -10 -9 -8 -8 -8 -8 -7 -7 -7 -6 -6 -5 -5 -5 -5 -5 -4 -4 -3 -3 -2 -2 -1 -1 -1 -1 --------- Run | Scr Mat Min Exi Min Mat Gar Mat Gar Fac Gar Fac Fac Gar Fac Gar Fac Ext Cet Fac Gar Res Gar Res Gar Acc Gar Acc Com Distress Signals 23 | . . 1 . . 3 . 4 . . . . . . 2 . . 1 2 . . 1 . 1 . . . 5 3 Communications Jammed . | . . . . . . . . . . . . . . . . . . . . . . . . . . . . . Distress Signals . | . . . . . . . . . . . . . . . . . . . . . . . . . . . . . Times Spotted 841 | . 12 11 . . 65 36 16 39 9 16 15 22 30 42 23 6 41 32 32 35 10 39 21 41 . 51 88 109 Peak Tracking Total 65 | . 4 2 . . 9 5 5 8 5 5 4 4 8 6 4 3 5 8 6 8 5 6 6 8 . 10 7 65 Tactical Retreats 60 | . . 2 . . 9 10 . 12 1 2 1 . 1 1 2 1 1 . 1 2 . 2 2 3 . 1 3 3 Traps | -11 -10 -10 -10 -9 -8 -8 -8 -8 -7 -7 -7 -6 -6 -5 -5 -5 -5 -5 -4 -4 -3 -3 -2 -2 -1 -1 -1 -1 ------- Run | Scr Mat Min Exi Min Mat Gar Mat Gar Fac Gar Fac Fac Gar Fac Gar Fac Ext Cet Fac Gar Res Gar Res Gar Acc Gar Acc Com Traps Triggered 102 | . 1 . . . 8 15 . 8 . 10 . . 9 3 8 3 5 . . 12 . 6 2 6 . 4 1 1 Indirectly 11 | . . . . . . 9 . . . . . . 2 . . . . . . . . . . . . . . . Trap Hack Attempts . | . . . . . . . . . . . . . . . . . . . . . . . . . . . . . Triggered . | . . . . . . . . . . . . . . . . . . . . . . . . . . . . . Disarmed . | . . . . . . . . . . . . . . . . . . . . . . . . . . . . . Reprogrammed . | . . . . . . . . . . . . . . . . . . . . . . . . . . . . . Reused . | . . . . . . . . . . . . . . . . . . . . . . . . . . . . . Traps Extracted . | . . . . . . . . . . . . . . . . . . . . . . . . . . . . . Installed . | . . . . . . . . . . . . . . . . . . . . . . . . . . . . . Triggered 5 | . . . . . . 2 . 2 . . . . . 1 . . . . . . . . . . . . . . Machines | -11 -10 -10 -10 -9 -8 -8 -8 -8 -7 -7 -7 -6 -6 -5 -5 -5 -5 -5 -4 -4 -3 -3 -2 -2 -1 -1 -1 -1 ---------- Run | Scr Mat Min Exi Min Mat Gar Mat Gar Fac Gar Fac Fac Gar Fac Gar Fac Ext Cet Fac Gar Res Gar Res Gar Acc Gar Acc Com Machines Disabled 81 | . . . . . 8 6 . 4 . 5 . 11 4 1 4 3 . 5 5 5 . 4 . 4 . 8 4 . Max in Single Turn 5 | . . . . . 2 2 . 1 . 1 . 5 1 . 1 1 . 2 3 1 . 1 . 1 . 1 1 . Garrison Relay 36 | . . . . . . 4 . 4 . 4 . . 4 . 4 . . . . 4 . 4 . 4 . 4 . . Phase Generator 2 | . . . . . . 1 . . . . . . . . . . . . . . . . . . . 1 . . Machines Sabotaged . | . . . . . . . . . . . . . . . . . . . . . . . . . . . . . Garrisons Compromised . | . . . . . . . . . . . . . . . . . . . . . . . . . . . . . Overloaded Fab Kills . | . . . . . . . . . . . . . . . . . . . . . . . . . . . . . Fab Network Shutdowns . | . . . . . . . . . . . . . . . . . . . . . . . . . . . . . Hacking | -11 -10 -10 -10 -9 -8 -8 -8 -8 -7 -7 -7 -6 -6 -5 -5 -5 -5 -5 -4 -4 -3 -3 -2 -2 -1 -1 -1 -1 --------- Run | Scr Mat Min Exi Min Mat Gar Mat Gar Fac Gar Fac Fac Gar Fac Gar Fac Ext Cet Fac Gar Res Gar Res Gar Acc Gar Acc Com Machines Accessed 62 | . 4 . 1 1 13 . 3 . 1 . 1 7 . 6 . 2 10 2 2 . 2 . 3 . 1 . . 3 Terminals 36 | . 3 . . . 9 . 2 . . . . 2 . 3 . 1 10 2 1 . . . 1 . . . . 2 Fabricators 4 | . . . . . . . . . . . . 3 . . . . . . . . . . 1 . . . . . Repair Stations 5 | . . . . . 2 . . . . . . . . 1 . 1 . . . . . . . . . . . 1 Recycling Units 2 | . 1 . . . . . . . . . . 1 . . . . . . . . . . . . . . . . Scanalyzers 4 | . . . . . 1 . . . . . 1 . . 1 . . . . . . 1 . . . . . . . Garrison Access 9 | . . . . . 1 . 1 . 1 . . 1 . 1 . . . . 1 . 1 . 1 . 1 . . . Total Hacks 125 | . 9 . 4 1 38 . 7 . 1 . 2 13 . 9 . 5 17 2 4 . 2 . 5 . 2 . . 4 Successful 68 | . 5 . 4 1 19 . 5 . 1 . 1 5 . 3 . 4 9 2 2 . 1 . 3 . 1 . . 2 Failed 57 | . 4 . . . 19 . 2 . . . 1 8 . 6 . 1 8 . 2 . 1 . 2 . 1 . . 2 Catastrophic 12 | . . . . . 3 . . . . . . 2 . 1 . . 2 . 1 . . . 1 . 1 . . 1 Database Lockouts . | . . . . . . . . . . . . . . . . . . . . . . . . . . . . . Manual 31 | . 1 . . . 20 . 2 . . . . 2 . 1 . . 1 1 2 . . . . . 1 . . . Terminals 77 | . 8 . . . 26 . 5 . . . . 4 . 4 . 2 17 2 3 . . . 3 . . . . 3 Fabricators 6 | . . . . . . . . . . . . 5 . . . . . . . . . . 1 . . . . . Repair Stations 11 | . . . . . 6 . . . . . . . . 1 . 3 . . . . . . . . . . . 1 Recycling Units 4 | . 1 . . . . . . . . . . 3 . . . . . . . . . . . . . . . . Scanalyzers 11 | . . . . . 5 . . . . . 2 . . 3 . . . . . . 1 . . . . . . . Garrison Access 11 | . . . . . 1 . 2 . 1 . . 1 . 1 . . . . 1 . 1 . 1 . 2 . . . Terminal Hacks 40 | . 4 . 4 1 9 . 3 . . . . 1 . 1 . 2 9 2 1 . . . 2 . . . . 1 Record 7 | . . . 4 . . . . . . . . . . . . . . 2 . . . . . . . . . 1 Robot Analysis 1 | . . . . . . . . . . . . . . 1 . . . . . . . . . . . . . . Prototype ID Bank 3 | . . . . . 1 . 2 . . . . . . . . . . . . . . . . . . . . . Open Door 6 | . . . . 1 . . . . . . . . . . . . 5 . . . . . . . . . . . Branch Access Points 1 | . 1 . . . . . . . . . . . . . . . . . . . . . . . . . . . Terminal Index 1 | . . . . . 1 . . . . . . . . . . . . . . . . . . . . . . . Alert Level 1 | . . . . . 1 . . . . . . . . . . . . . . . . . . . . . . . Unreport Threat 6 | . . . . . 3 . . . . . . 1 . . . . . . . . . . 2 . . . . . Locate Traps 6 | . 1 . . . 1 . . . . . . . . . . 1 3 . . . . . . . . . . . Dispatch Records 1 | . . . . . 1 . . . . . . . . . . . . . . . . . . . . . . . Recall Investigation 1 | . 1 . . . . . . . . . . . . . . . . . . . . . . . . . . . Hauler Manifests 3 | . 1 . . . 1 . 1 . . . . . . . . . . . . . . . . . . . . . Registered Components 1 | . . . . . . . . . . . . . . . . . 1 . . . . . . . . . . . Zone Layout 2 | . . . . . . . . . . . . . . . . 1 . . 1 . . . . . . . . . Fabricator Hacks 1 | . . . . . . . . . . . . 1 . . . . . . . . . . . . . . . . Load Schematic 1 | . . . . . . . . . . . . 1 . . . . . . . . . . . . . . . . Repair Station Hacks 7 | . . . . . 4 . . . . . . . . . . 2 . . . . . . . . . . . 1 Scan Component 5 | . . . . . 3 . . . . . . . . . . 1 . . . . . . . . . . . 1 Repair 2 | . . . . . 1 . . . . . . . . . . 1 . . . . . . . . . . . . Recycling Unit Hacks . | . . . . . . . . . . . . . . . . . . . . . . . . . . . . . Scanalyzer 7 | . . . . . 5 . . . . . 1 . . 1 . . . . . . . . . . . . . . Insert Component 5 | . . . . . 3 . . . . . 1 . . 1 . . . . . . . . . . . . . . Analyze 2 | . . . . . 2 . . . . . . . . . . . . . . . . . . . . . . . Garrison Access Hacks 10 | . . . . . 1 . 2 . 1 . . 1 . 1 . . . . 1 . 1 . 1 . 1 . . . Unlock Access 9 | . . . . . 1 . 1 . 1 . . 1 . 1 . . . . 1 . 1 . 1 . 1 . . . Coupler Status 1 | . . . . . . . 1 . . . . . . . . . . . . . . . . . . . . . Unauthorized Hacks 3 | . 1 . . . . . . . . . . 2 . . . . . . . . . . . . . . . . Terminals . | . . . . . . . . . . . . . . . . . . . . . . . . . . . . . Fabricators . | . . . . . . . . . . . . . . . . . . . . . . . . . . . . . Repair Stations . | . . . . . . . . . . . . . . . . . . . . . . . . . . . . . Recycling Units 3 | . 1 . . . . . . . . . . 2 . . . . . . . . . . . . . . . . Monitor 1 | . . . . . . . . . . . . 1 . . . . . . . . . . . . . . . . Reject 1 | . . . . . . . . . . . . 1 . . . . . . . . . . . . . . . . Tunnel 1 | . 1 . . . . . . . . . . . . . . . . . . . . . . . . . . . Scanalyzers . | . . . . . . . . . . . . . . . . . . . . . . . . . . . . . Garrison Access . | . . . . . . . . . . . . . . . . . . . . . . . . . . . . . Data Cores Recovered . | . . . . . . . . . . . . . . . . . . . . . . . . . . . . . Used . | . . . . . . . . . . . . . . . . . . . . . . . . . . . . . Hacking Detections 51 | . 3 . . . 12 . 3 . 1 . 1 7 . 5 . 2 6 1 2 . 1 . 3 . 1 . . 3 Full Trace Events 3 | . . . . . 1 . . . . . . 1 . . . . . . . . . . . . 1 . . . Feedback Events . | . . . . . . . . . . . . . . . . . . . . . . . . . . . . . Feedback Blocked . | . . . . . . . . . . . . . . . . . . . . . . . . . . . . . Robot Schematics Acquired . | . . . . . . . . . . . . . . . . . . . . . . . . . . . . . Robots Built . | . . . . . . . . . . . . . . . . . . . . . . . . . . . . . Matter . | . . . . . . . . . . . . . . . . . . . . . . . . . . . . . Time . | . . . . . . . . . . . . . . . . . . . . . . . . . . . . . Total Robot Build Rating . | . . . . . . . . . . . . . . . . . . . . . . . . . . . . . Part Schematics Acquired 2 | . . . . . 2 . . . . . . . . . . . . . . . . . . . . . . . Parts Built . | . . . . . . . . . . . . . . . . . . . . . . . . . . . . . Matter . | . . . . . . . . . . . . . . . . . . . . . . . . . . . . . Time . | . . . . . . . . . . . . . . . . . . . . . . . . . . . . . Total Part Build Rating . | . . . . . . . . . . . . . . . . . . . . . . . . . . . . . Parts Repaired 2 | . . . . . 1 . . . . . . . . . . 1 . . . . . . . . . . . . Time 57 | . . . . . 44 . . . . . . . . . . 13 . . . . . . . . . . . . Parts Recycled . | . . . . . . . . . . . . . . . . . . . . . . . . . . . . . Recycled Matter . | . . . . . . . . . . . . . . . . . . . . . . . . . . . . . Retrieved Matter . | . . . . . . . . . . . . . . . . . . . . . . . . . . . . . Retrieved Components . | . . . . . . . . . . . . . . . . . . . . . . . . . . . . . Parts Scanalyzed 4 | . . . . . 2 . . . . . 1 . . 1 . . . . . . . . . . . . . . Part Schematics Acquired 2 | . . . . . 2 . . . . . . . . . . . . . . . . . . . . . . . Parts Damaged 1 | . . . . . 1 . . . . . . . . . . . . . . . . . . . . . . . Bothacking | -11 -10 -10 -10 -9 -8 -8 -8 -8 -7 -7 -7 -6 -6 -5 -5 -5 -5 -5 -4 -4 -3 -3 -2 -2 -1 -1 -1 -1 ------------ Run | Scr Mat Min Exi Min Mat Gar Mat Gar Fac Gar Fac Fac Gar Fac Gar Fac Ext Cet Fac Gar Res Gar Res Gar Acc Gar Acc Com Used RIF Installer 9 | . . . . . . 1 . 1 . 1 . . 1 . 1 . . . . 1 . 1 . 1 . 1 . . Coupler Efficiency 1 | . . . . . . . . . . . . . 1 . . . . . . . . . . . . . . . Command Fork 2 | . . . . . . . . 1 . . . . . . . . . . . . . . . . . 1 . . Threat Obfuscator 1 | . . . . . . . . . . . . . . . . . . . . . . . . 1 . . . . Zone Cloak 1 | . . . . . . . . . . . . . . . 1 . . . . . . . . . . . . . Alert ID Control 1 | . . . . . . . . . . . . . . . . . . . . 1 . . . . . . . . Structural Interface 1 | . . . . . . . . . . . . . . . . . . . . . . 1 . . . . . . Autooverride 1 | . . . . . . . . . . 1 . . . . . . . . . . . . . . . . . . Robots Hacked 238 | . . . . . . . 1 2 1 5 4 5 14 15 9 4 16 4 6 13 1 13 9 19 . 22 34 41 Non-combat 18 | . . . . . . . . . . . . . . . . 1 3 . . . . . 4 . . . 10 . Combat 220 | . . . . . . . 1 2 1 5 4 5 14 15 9 3 13 4 6 13 1 13 5 19 . 22 24 41 Autooverrided 55 | . . . . . . . . . . 1 1 . 2 1 2 2 7 3 4 6 . 4 . 5 . 1 3 13 Robot Hacks Applied 216 | . . . . . . . 2 2 1 5 3 5 13 17 9 3 10 1 2 8 1 11 9 21 . 22 41 30 parse_system 6 | . . . . . . . . . . 1 . . . . 1 1 . 1 . . . . . . . . 1 1 map_walls 6 | . . . . . . . . . . . . . . . . . . . . . . . 1 . . . 5 . map_earth 1 | . . . . . . . . . . . . . . . . 1 . . . . . . . . . . . . drop_inventory 4 | . . . . . . . . . . . . . . . . . . . . . . . 1 . . . 3 . ignore_parts 1 | . . . . . . . . . . . . . . . . . 1 . . . . . . . . . . . purge_threat 4 | . . . . . . . . . . . . . . . . . 1 . . . . . . . . . 3 . locate_traps 1 | . . . . . . . . . . . . . . . . . . . . . . . . . . . 1 . block_reporting 2 | . . . . . . . . . . . . . . . . . 1 . . . . . 1 . . . . . map_route 3 | . . . . . . . . . . . . . . . . . . . . . . . 1 . . . 2 . mark_security 2 | . . . . . . . . . . . . . . . . . 1 . . . . . . . . . 1 . find_shortcuts 2 | . . . . . . . . . . . . . . . . . . . . . . . . 1 . . . 1 find_garrison 2 | . . . . . . . 1 . . . . . . 1 . . . . . . . . . . . . . . reboot_propulsion 1 | . . . . . . . . . . . . . . . . . . . . . . . . . . . 1 . tweak_propulsion 1 | . . . . . . . . . . . . . . . . . . . . . . . . 1 . . . . scatter_targeting 4 | . . . . . . . . . . . 1 . . . 1 . 1 . . . . . . 1 . . . . mark_system 1 | . . . . . . . . . . . . . . . . . . . . . . . . . . . 1 . link_complan 1 | . . . . . . . . . . . . . . . . . . . . . . . . 1 . . . . broadcast_data 3 | . . . . . . . . . . . . . . . . . . . . . . . . . . . 1 2 disrupt_area 2 | . . . . . . . . . . . . . . . . . . . . . . . . . . 1 1 . spike_heat 10 | . . . . . . . . . . . . . . . 2 . . . . . . . . 1 . 4 2 1 overload_power 3 | . . . . . . . . . . . . . . . . . . . . . . . . 1 . . 2 . amplify_resonance 15 | . . . . . . . . . . 1 . . 1 1 . . . . . . . 2 2 1 . 1 1 5 wipe_record 7 | . . . . . . . . 1 . . . 1 1 1 1 . . . . . . . . . . . 2 . disable_weapons 1 | . . . . . . . . . . . . . . . . . . . . . . . . 1 . . . . reboot_system 5 | . . . . . . . . . . . . . 1 . . . 1 . . . 1 . . 2 . . . . go_dormant 6 | . . . . . . . . . . . . . . 1 1 . 1 . . . . . 1 1 . . 1 . overwrite_iff 79 | . . . . . . . . 1 . 3 2 3 9 10 2 . 1 . 1 5 . 4 . 10 . 11 10 7 streamctrl_high 22 | . . . . . . . . . 1 . . . 1 1 . . . . . 3 . 2 . . . 4 1 9 formatsys_high 21 | . . . . . . . 1 . . . . 1 . 2 1 1 2 . 1 . . 3 2 . . 1 2 4 Relay Couplers Released 139 | . . . . . . 14 . 16 . 16 . . 17 . 16 . . . . 13 . 15 . 15 . 17 . . Machine Destruction 139 | . . . . . . 14 . 16 . 16 . . 17 . 16 . . . . 13 . 15 . 15 . 17 . . Attached 76 | . . . . . . . 1 2 1 3 . 3 6 3 6 1 . 1 . 6 . 12 1 10 . 11 2 7 Robots Rewired 26 | . . . . . . . . . . . . . . . . . 19 . . . . . . . . 7 . . Allies Hacked 3 | . . . . . . . . . . . . . . . . . 2 . . . . . . . . . . 1 Hacks Repelled . | . . . . . . . . . . . . . . . . . . . . . . . . . . . . . Allies | -11 -10 -10 -10 -9 -8 -8 -8 -8 -7 -7 -7 -6 -6 -5 -5 -5 -5 -5 -4 -4 -3 -3 -2 -2 -1 -1 -1 -1 -------- Run | Scr Mat Min Exi Min Mat Gar Mat Gar Fac Gar Fac Fac Gar Fac Gar Fac Ext Cet Fac Gar Res Gar Res Gar Acc Gar Acc Com Total Allies 232 | . . . . . . . 1 1 1 5 5 4 14 15 5 3 34 3 8 14 . 12 2 17 . 26 18 44 Largest Group 17 | . . . . . . . 1 1 1 2 2 1 2 4 2 2 17 17 3 4 . 5 1 4 . 7 8 6 Highest-Rated Group 631 | . . . . . . . 16 15 32 32 32 32 79 136 110 58 631 631 181 190 . 263 64 154 . 375 439 348 Highest-Rated Ally 222 | . . . . . . . 16 15 32 16 16 32 47 49 81 49 156 156 144 58 . 64 64 64 . 222 69 69 Total Orders 30 | . . . . . 1 . . . . 3 . . . 3 3 . 7 . . 1 . . 3 3 . 6 . . STAY 10 | . . . . . . . . . . . . . . . 2 . 4 . . 1 . . . . . 3 . . FOLLOW 6 | . . . . . . . . . . 1 . . . . 1 . 3 . . . . . . . . 1 . . EXPLORE 3 | . . . . . . . . . . . . . . 3 . . . . . . . . . . . . . . RETURN 11 | . . . . . 1 . . . . 2 . . . . . . . . . . . . 3 3 . 2 . . Ally Attacks 1046 | . . . . . 4 . 3 2 4 31 14 8 31 48 25 10 148 143 44 76 . 55 11 62 . 99 131 97 Total Damage 31055 | . . . . . . . 51 58 140 198 164 154 614 1121 812 189 3889 2896 1268 3104 . 1834 295 966 . 4789 4661 3852 Kills 165 | . . . . . . . . 1 . 3 . . 4 7 3 1 18 26 7 17 . 12 . 5 . 22 26 13 Allies Corrupted 6 | . . . . . . . . . . . . . . . . . 1 . 1 . . 1 . 1 . . . 2 Allies Melted 1 | . . . . . . . . . . . . . . . . . . . . 1 . . . . . . . . Intel | -11 -10 -10 -10 -9 -8 -8 -8 -8 -7 -7 -7 -6 -6 -5 -5 -5 -5 -5 -4 -4 -3 -3 -2 -2 -1 -1 -1 -1 ------- Run | Scr Mat Min Exi Min Mat Gar Mat Gar Fac Gar Fac Fac Gar Fac Gar Fac Ext Cet Fac Gar Res Gar Res Gar Acc Gar Acc Com Robot Analysis Total 1 | . . . . . . . . . . . . . . 1 . . . . . . . . . . . . . . Derelict Logs Recovered 2 | . . 2 . . . . . . . . . . . . . . . . . . . . . . . . . . Drone Launches 43 | . . . . . 3 . . . . 7 . . . 2 . . . . . . . . 6 17 . 8 . . Drone Recoveries 41 | . . . . . 3 . . . . 7 . . . . . . . . . . . . 6 17 . 8 . . Exploration | -11 -10 -10 -10 -9 -8 -8 -8 -8 -7 -7 -7 -6 -6 -5 -5 -5 -5 -5 -4 -4 -3 -3 -2 -2 -1 -1 -1 -1 ------------- Run | Scr Mat Min Exi Min Mat Gar Mat Gar Fac Gar Fac Fac Gar Fac Gar Fac Ext Cet Fac Gar Res Gar Res Gar Acc Gar Acc Com Turns Passed 37624 | 41 353 573 333 69 2249 1708 342 1891 447 1744 424 1090 1674 1830 2883 676 2519 870 714 2503 368 1954 678 3233 78 3492 2082 806 Spaces Moved 19205 | 34 255 506 312 58 1351 1018 161 776 178 1042 250 733 880 811 1314 453 1157 417 284 1069 203 1060 400 1469 40 1764 918 292 Core 39 | 10 . . . . . . . 8 . . . . . . 15 . . . . . . . . . . . . 6 Treads 6201 | . . . . . . . . 659 146 . . . . 517 705 . 722 417 284 113 . . . 931 40 959 427 281 Legs 5692 | . . . . . 527 640 . 24 . 425 . . 855 185 115 . 26 . . 956 203 912 . 399 . 425 . . Wheels 7273 | 24 255 506 312 58 824 378 161 85 32 617 250 733 25 109 479 453 409 . . . . 148 400 139 . 380 491 5 Hover . | . . . . . . . . . . . . . . . . . . . . . . . . . . . . . Flight . | . . . . . . . . . . . . . . . . . . . . . . . . . . . . . Fastest Speed 50 | 50 100 100 100 110 90 110 110 120 113 113 110 110 113 130 110 110 120 180 160 150 150 120 120 120 190 120 112 50 Average Speed 150 | 85 100 100 104 110 120 135 111 195 169 132 117 113 149 169 180 112 159 180 164 153 150 146 121 173 190 165 157 186 Slowest Speed 1750 | 100 100 100 110 110 210 150 120 1550 180 270 125 125 240 230 1750 120 270 180 180 300 150 210 130 270 190 290 210 190 Overloaded Moves . | . . . . . . . . . . . . . . . . . . . . . . . . . . . . . Propulsion Burnouts . | . . . . . . . . . . . . . . . . . . . . . . . . . . . . . Robots Hopped . | . . . . . . . . . . . . . . . . . . . . . . . . . . . . . Cave-ins Triggered . | . . . . . . . . . . . . . . . . . . . . . . . . . . . . . Exploration Rate (%) 51 | 4 61 97 64 27 97 97 18 73 3 89 7 22 84 31 85 10 84 87 12 84 8 95 17 99 1 99 23 16 Regions Visited 28 Branch Regions 6 Pre-discovered Areas 3 | . 1 1 1 . . . . . . . . . . . . . . . . . . . . . . . . . Known Exits Taken 10 | . 1 . . . 1 . 1 . 1 . . 1 . 1 . . . . 1 . 1 . 1 . 1 . . . Unknown Exits Taken 9 | 1 . 1 1 1 . . . . . . 1 . . . . 1 1 1 . . . . . . . . 1 . Scrap Searched 2 | . . 2 . . . . . . . . . . . . . . . . . . . . . . . . . . Spaces Dug 67 | . . . . . 1 6 . . . . . . . 1 . . . . . . . 11 . 9 . 10 29 . Terrain Destroyed 678 | . 36 24 . . 71 148 6 14 . 13 3 39 11 8 2 30 4 13 74 2 1 64 10 22 . 29 51 3 Melee 1 | . . . . . . . . . . . . . . 1 . . . . . . . . . . . . . . Projectile 146 | . . . . . 4 . . . . . . . 5 . 2 . 4 . 8 2 1 19 10 22 . 15 51 3 AOE 531 | . 36 24 . . 67 148 6 14 . 13 3 39 6 7 . 30 . 13 66 . . 45 . . . 14 . . Terrain Rammed . | . . . . . . . . . . . . . . . . . . . . . . . . . . . . . Walls Destroyed . | . . . . . . . . . . . . . . . . . . . . . . . . . . . . . Machines Disabled . | . . . . . . . . . . . . . . . . . . . . . . . . . . . . . Actions | -11 -10 -10 -10 -9 -8 -8 -8 -8 -7 -7 -7 -6 -6 -5 -5 -5 -5 -5 -4 -4 -3 -3 -2 -2 -1 -1 -1 -1 --------- Run | Scr Mat Min Exi Min Mat Gar Mat Gar Fac Gar Fac Fac Gar Fac Gar Fac Ext Cet Fac Gar Res Gar Res Gar Acc Gar Acc Com Total 26002 | 46 316 542 320 62 1775 1266 270 1053 286 1339 334 899 1135 1137 1704 580 1689 500 420 1826 252 1401 541 2002 41 2331 1448 487 Wait 2433 | . 10 7 5 . 162 92 45 111 53 101 29 30 61 97 163 65 99 14 32 481 12 86 16 184 . 288 160 30 Move 19184 | 33 254 505 311 57 1350 1016 161 775 178 1041 249 733 879 811 1313 452 1156 416 284 1068 203 1059 400 1468 40 1763 917 292 Hop . | . . . . . . . . . . . . . . . . . . . . . . . . . . . . . Pick Up 394 | 5 15 3 2 1 38 18 4 21 6 16 3 15 19 22 27 7 21 7 8 35 2 25 6 21 . 15 25 7 Fast Attach 369 | 1 1 2 . . 28 1 10 8 8 12 2 15 7 29 16 7 37 9 7 25 8 15 19 42 1 21 30 8 Attach 234 | 5 1 1 . . 23 7 . 16 2 4 1 10 5 14 12 2 15 3 6 28 1 9 5 10 . 9 22 23 Detach 18 | . . . . . . . 1 1 . 2 . . . 3 1 . . 1 . 2 . 1 . 1 . 1 1 3 Swap 282 | 1 6 4 1 3 19 15 3 7 2 15 7 11 14 15 16 6 13 9 9 11 4 31 4 22 . 14 14 6 Drop 598 | 1 7 4 1 1 32 9 13 17 12 25 5 21 24 38 40 11 56 20 10 39 10 41 20 65 . 31 32 13 Fire 1892 | . 22 16 . . 123 69 30 70 25 58 38 63 92 86 95 30 93 20 61 79 11 100 61 170 . 129 247 104 Melee 54 | . . . . . . . 2 2 . . . 1 . 20 5 . . 1 2 9 1 11 . . . . . . Ram . | . . . . . . . . . . . . . . . . . . . . . . . . . . . . . Kick 1 | . . . . . . . . . . . . . . . . . . . . . . . . 1 . . . . Crush . | . . . . . . . . . . . . . . . . . . . . . . . . . . . . . Escape Stasis 310 | . . . . . . 39 . 25 . 65 . . 34 . 16 . 28 . . 49 . 20 8 18 . 8 . . Rewire 233 | . . . . . . . 1 . . . . . . 2 . . 171 . 1 . . 3 2 . . 52 . 1 Trap . | . . . . . . . . . . . . . . . . . . . . . . . . . . . . . Miscellaneous . | . . . . . . . . . . . . . . . . . . . . . . . . . . . . . Route ------- -11/Scrapyard -10/Materials (discovered 2 exits: [*Mat] / *Min) -10/Mines (discovered 3 exits: [*Mat x2] / *Exi) -10/Exiles -9/Mines -8/Materials (discovered 3 exits: *Fac x2 / Gar) -8/Garrison (discovered 3 exits: *Mat x3) -8/Materials -8/Garrison (discovered 2 exits: *Fac x2) -7/Factory -7/Garrison (discovered 3 exits: *Fac x3) -7/Factory -6/Factory -6/Garrison (discovered 3 exits: *Fac x3) -5/Factory (discovered 3 exits: *Fac x2 / Gar) -5/Garrison (discovered 3 exits: *Fac x3) -5/Factory (discovered 2 exits: [Upp] / *Ext) -5/Extension (discovered 3 exits: *Fac x2 / *Cet) -5/Cetus (discovered 3 exits: *Fac x2 / [*Arc]) -4/Factory (discovered 2 exits: *Res / Gar) -4/Garrison (discovered 3 exits: *Res x3) -3/Research -3/Garrison (discovered 2 exits: *Res x2) -2/Research (discovered 2 exits: *Acc / Gar) -2/Garrison (discovered 3 exits: *Acc x3) -1/Access -1/Garrison (discovered 3 exits: [*Acc x3]) -1/Access -1/Command History --------- Turn | Location | Event 7 | -11/Scrapyard | Discovered new exit (range 16) 42 | -11/Scrapyard | Entered Materials 224 | -10/Materials | Discovered new exit (range 16) 231 | -10/Materials | Identified exit to Mines 305 | -10/Materials | Build established: Mutant 310 | -10/Materials | Core integrity fell below 50% 343 | -10/Materials | Destroyed 7 combat bots 395 | -10/Materials | Entered Mines 545 | -10/Mines | Joined a pair of Derelicts in attacking an 0b10 outpost 711 | -10/Mines | Learned 2 Materials zone layouts 810 | -10/Mines | Discovered new exit (range 15) 822 | -10/Mines | Learned location of Recycling (-7) 907 | -10/Mines | Build established: Scavenger-Mutant 923 | -10/Mines | Discovered new exit (range 8) 964 | -10/Mines | Deemed a non-threat by the Exiles lab entrance 964 | -10/Mines | Discovered new exit (range 5) 968 | -10/Mines | Entered Exiles 992 | -10/Exiles | Met 8R-AWN 1009 | -10/Exiles | Met EX-HEX 1083 | -10/Exiles | Met EX-DEC 1099 | -10/Exiles | Learned location of Zion (-7) 1203 | -10/Exiles | Met EX-BIN 1291 | -10/Exiles | Discovered new exit (range 10) 1301 | -10/Exiles | Entered Mines 1339 | -9/Mines | Discovered new exit (range 10) 1348 | -9/Mines | Found the Drone Emporium 1352 | -9/Mines | Found Prototype Device 1353 | -9/Mines | Identified Thief Drone Bay 1370 | -9/Mines | Entered Materials 1370 | -8/Materials | Evolved 4 slots: Propulsion x1, Utility x3 1371 | -8/Materials | Identified exit to Factory 2165 | -8/Materials | Lost 6 parts (1p2n2u1w) 2785 | -8/Materials | Discovered exit to Factory (range 16) 2880 | -8/Materials | Build established: Mutant 3488 | -8/Materials | Repaired Imp. Carbon-fiber Leg 3549 | -8/Materials | Garrison activated, responded to threat 3589 | -8/Materials | Identified exit to Garrison 3619 | -8/Materials | Entered Garrison 3784 | -8/Garrison | Triggered checkpoint 3854 | -8/Garrison | Garrison Relay disabled 3972 | -8/Garrison | Triggered checkpoint 4020 | -8/Garrison | Triggered checkpoint 4100 | -8/Garrison | Discovered new exit (range 14) 4210 | -8/Garrison | Triggered checkpoint 4381 | -8/Garrison | Phase Generator disabled 4396 | -8/Garrison | Discovered new exit (range 5) 4428 | -8/Garrison | Garrison Relay disabled 4523 | -8/Garrison | Discovered new exit (range 14) 4568 | -8/Garrison | Installed Relay Interface Framework 4698 | -8/Garrison | Garrison Relay disabled 4798 | -8/Garrison | Triggered checkpoint 5327 | -8/Garrison | Entered Materials 5357 | -8/Materials | Build established: Bothacker-Mutant 5441 | -8/Materials | System corruption reached 10% 5585 | -8/Materials | Garrison activated, responded to threat 5620 | -8/Materials | Core integrity fell below 50% 5669 | -8/Materials | Identified exit to Garrison 5669 | -8/Materials | Entered Garrison 5675 | -8/Garrison | Expanded RIF knowledge: Command Fork 5710 | -8/Garrison | Triggered checkpoint 5785 | -8/Garrison | Garrison Relay disabled 5844 | -8/Garrison | Triggered checkpoint 5869 | -8/Garrison | Triggered checkpoint 5928 | -8/Garrison | Lost 7 parts (1p2n2u2w) 6325 | -8/Garrison | Discovered exit to Factory (range 13) 6406 | -8/Garrison | Triggered checkpoint 6647 | -8/Garrison | Garrison Relay disabled 6760 | -8/Garrison | Triggered checkpoint 6864 | -8/Garrison | Triggered checkpoint 7226 | -8/Garrison | Triggered checkpoint 7307 | -8/Garrison | Garrison Relay disabled 7405 | -8/Garrison | Core integrity fell below 20% 7533 | -8/Garrison | Discovered exit to Factory (range 13) 7560 | -8/Garrison | Entered Factory 7560 | -7/Factory | Evolved 2 slots: Utility x2 7861 | -7/Factory | Garrison activated, responded to threat 7960 | -7/Factory | First assault squad dispatched 8007 | -7/Factory | Identified exit to Garrison 8007 | -7/Factory | Entered Garrison 8013 | -7/Garrison | Expanded RIF knowledge: Autooverride 8120 | -7/Garrison | Triggered checkpoint 8133 | -7/Garrison | Garrison Relay disabled 8210 | -7/Garrison | Triggered checkpoint 8243 | -7/Garrison | Triggered checkpoint 8330 | -7/Garrison | Triggered checkpoint 8378 | -7/Garrison | Garrison Relay disabled 8382 | -7/Garrison | Lost 4 parts (1n2u1w) 8590 | -7/Garrison | Discovered new exit (range 12) 8732 | -7/Garrison | Discovered new exit (range 15) 8803 | -7/Garrison | Triggered checkpoint 8844 | -7/Garrison | Garrison Relay disabled 8901 | -7/Garrison | Triggered checkpoint 8968 | -7/Garrison | Discovered new exit (range 8) 9018 | -7/Garrison | Triggered checkpoint 9048 | -7/Garrison | Garrison Relay disabled 9102 | -7/Garrison | Triggered checkpoint 9751 | -7/Garrison | Entered Factory 10084 | -7/Factory | Discovered new exit (range 16) 10175 | -7/Factory | Entered another Factory area 10175 | -6/Factory | Evolved 2 slots: Utility x1, Weapon x1 10549 | -6/Factory | Lost 6 parts (1p1n2u2w) 11263 | -6/Factory | Identified exit to Garrison 11265 | -6/Factory | Entered Garrison 11265 | -6/Garrison | Accompanied by 1 ally 11358 | -6/Garrison | Triggered checkpoint 11418 | -6/Garrison | Garrison Relay disabled 11478 | -6/Garrison | Triggered checkpoint 11614 | -6/Garrison | Triggered checkpoint 11697 | -6/Garrison | Discovered new exit (range 8) 11761 | -6/Garrison | Triggered checkpoint 11786 | -6/Garrison | Triggered checkpoint 11938 | -6/Garrison | Discovered new exit (range 12) 11970 | -6/Garrison | Expanded RIF knowledge: Coupler Efficiency 12004 | -6/Garrison | Triggered checkpoint 12042 | -6/Garrison | Garrison Relay disabled 12120 | -6/Garrison | Triggered checkpoint 12264 | -6/Garrison | Build established: Botlord-Mutant 12310 | -6/Garrison | Discovered new exit (range 9) 12344 | -6/Garrison | Triggered checkpoint 12402 | -6/Garrison | Garrison Relay disabled 12939 | -6/Garrison | Entered Factory 12939 | -5/Factory | Evolved 2 slots: Utility x2 13262 | -5/Factory | P-70 Sage assimilated allied G-67 Veteran 13561 | -5/Factory | P-70 Sage assimilated allied Sentinel 6a 13622 | -5/Factory | Lost 5 parts (2n1u2w) 13890 | -5/Factory | Discovered new exit (range 50) 14245 | -5/Factory | P-70 Sage assimilated allied Slayer 6a 14708 | -5/Factory | Discovered new exit (range 15) 14735 | -5/Factory | Garrison activated, responded to threat 14769 | -5/Factory | Identified exit to Garrison 14769 | -5/Factory | Entered Garrison 14794 | -5/Garrison | Triggered checkpoint 14861 | -5/Garrison | Garrison Relay disabled 14974 | -5/Garrison | Spotted B-75 Beast 14989 | -5/Garrison | Triggered checkpoint 15077 | -5/Garrison | Assimilated Beast 6a with formatsys_high 15154 | -5/Garrison | Triggered checkpoint 15187 | -5/Garrison | Triggered checkpoint 15317 | -5/Garrison | Discovered new exit (range 10) 15343 | -5/Garrison | Triggered checkpoint 15439 | -5/Garrison | Garrison Relay disabled 15729 | -5/Garrison | Discovered new exit (range 10) 15818 | -5/Garrison | Triggered checkpoint 16030 | -5/Garrison | Garrison Relay disabled 16189 | -5/Garrison | Discovered new exit (range 12) 16224 | -5/Garrison | Expanded RIF knowledge: Zone Cloak 16268 | -5/Garrison | Triggered checkpoint 16346 | -5/Garrison | Garrison Relay disabled 17382 | -5/Garrison | Triggered checkpoint 17652 | -5/Garrison | Entered Factory 17945 | -5/Factory | Repaired Hcp. Storage Unit 18055 | -5/Factory | Discovered new exit (range 16) 18217 | -5/Factory | System corruption reached 10% 18238 | -5/Factory | Discovered new exit (range 17) 18252 | -5/Factory | First assault squad dispatched 18328 | -5/Factory | Entered Extension 18328 | -5/Extension | Accompanied by 1 ally 18509 | -5/Extension | Rescued a captive Derelict 18703 | -5/Extension | Disrupted transfer network 18836 | -5/Extension | Rescued a captive Derelict 18837 | -5/Extension | Rescued a captive Derelict 18889 | -5/Extension | Spotted B-75 Beast 18926 | -5/Extension | Core integrity fell below 50% 18959 | -5/Extension | Lost 3 parts (1n1u1w) 19638 | -5/Extension | Destroyed B-75 Beast 19645 | -5/Extension | Spotted B-75 Beast 19653 | -5/Extension | Allies destroyed B-75 Beast 19711 | -5/Extension | Build established: Scavenger-Mutant 19753 | -5/Extension | Discovered new exit (range 4) 19986 | -5/Extension | Rescued a captive Derelict 20458 | -5/Extension | Rescued A7 20804 | -5/Extension | Discovered new exit (range 10) 20805 | -5/Extension | Discovered new exit (range 6) 20847 | -5/Extension | Entered Cetus 20847 | -5/Cetus | Accompanied by 17 allies (A7) 20852 | -5/Cetus | Acquired a Cetus Manufacturing Module code from A7 20870 | -5/Cetus | Spotted Cetus Guard 20870 | -5/Cetus | Spotted Cetus Guard 20874 | -5/Cetus | Spotted Cetus Guard 20874 | -5/Cetus | Spotted Cetus Guard 20885 | -5/Cetus | Allies destroyed Cetus Guard 20892 | -5/Cetus | Allies destroyed Cetus Guard 20893 | -5/Cetus | Allies destroyed Cetus Guard 20898 | -5/Cetus | Allies destroyed Cetus Guard 20970 | -5/Cetus | Discovered new exit (range 15) 21049 | -5/Cetus | Cetus Manufacturing Module disabled 21096 | -5/Cetus | Build established: Botlord-Mutant 21230 | -5/Cetus | Failed to start Cetus Manufacturing Module 21273 | -5/Cetus | Escorted A7 to Cetus Mainframe 21334 | -5/Cetus | P-70 Sage assimilated allied EN-6KC(g) 21572 | -5/Cetus | Discovered new exit (range 15) 21603 | -5/Cetus | Spotted Cetus Guard 21604 | -5/Cetus | Spotted Cetus Guard 21606 | -5/Cetus | Spotted Cetus Guard 21606 | -5/Cetus | Allies destroyed Cetus Guard 21606 | -5/Cetus | Allies destroyed Cetus Guard 21607 | -5/Cetus | Spotted Cetus Guard 21613 | -5/Cetus | Destroyed Cetus Guard 21619 | -5/Cetus | Destroyed Cetus Guard 21633 | -5/Cetus | Discovered new exit (range 16) 21644 | -5/Cetus | Met Revision 17 21717 | -5/Cetus | Entered Factory 21717 | -4/Factory | Accompanied by 2 allies (A7) 21717 | -4/Factory | Evolved 2 slots: Propulsion x1, Utility x1 21722 | -4/Factory | Received a hacking code to weaken MAIN.C 21810 | -4/Factory | Allied Derelicts emerged from ambush trap array 21967 | -4/Factory | First assault squad dispatched 22110 | -4/Factory | Garrison activated, responded to threat 22319 | -4/Factory | Lost 3 parts (2u1w) 22366 | -4/Factory | Discovered new exit (range 14) 22431 | -4/Factory | Identified exit to Garrison 22431 | -4/Factory | Entered Garrison 22431 | -4/Garrison | Accompanied by 1 ally 22440 | -4/Garrison | Expanded RIF knowledge: Alert ID Control 22490 | -4/Garrison | Triggered checkpoint 22491 | -4/Garrison | Garrison Relay disabled 22803 | -4/Garrison | Triggered checkpoint 22850 | -4/Garrison | Triggered checkpoint 22927 | -4/Garrison | Lost 3 parts (2n1w) 22975 | -4/Garrison | Spotted B-86 Titan 23008 | -4/Garrison | Triggered checkpoint 23011 | -4/Garrison | Allies destroyed B-86 Titan 23044 | -4/Garrison | Found Hvy. Reflective Plating 23048 | -4/Garrison | Triggered checkpoint 23212 | -4/Garrison | Triggered checkpoint 23253 | -4/Garrison | Discovered new exit (range 12) 23458 | -4/Garrison | Triggered checkpoint 23538 | -4/Garrison | Discovered new exit (range 15) 23843 | -4/Garrison | Discovered new exit (range 8) 23860 | -4/Garrison | Triggered checkpoint 23906 | -4/Garrison | Garrison Relay disabled 24311 | -4/Garrison | Garrison Relay disabled 24585 | -4/Garrison | Found Unknown Device 24585 | -4/Garrison | Identified Antimissile System 24611 | -4/Garrison | Found Gamma Bomb Array 24613 | -4/Garrison | Found Gamma Bomb Array 24616 | -4/Garrison | Found Gamma Bomb Array 24848 | -4/Garrison | Garrison Relay disabled 24934 | -4/Garrison | Entered Research 24934 | -3/Research | Evolved 2 slots: Power x1, Utility x1 25110 | -3/Research | Build established: Botlord-Tank 25184 | -3/Research | First assault squad dispatched 25302 | -3/Research | Identified exit to Garrison 25302 | -3/Research | Entered Garrison 25374 | -3/Garrison | Triggered checkpoint 25398 | -3/Garrison | Triggered checkpoint 25400 | -3/Garrison | Triggered checkpoint 25464 | -3/Garrison | Build established: Botlord-Mutant 25610 | -3/Garrison | Triggered checkpoint 25882 | -3/Garrison | Triggered checkpoint 25964 | -3/Garrison | Garrison Relay disabled 26020 | -3/Garrison | Discovered new exit (range 10) 26210 | -3/Garrison | Triggered checkpoint 26264 | -3/Garrison | Garrison Relay disabled 26298 | -3/Garrison | Discovered new exit (range 12) 26324 | -3/Garrison | Expanded RIF knowledge: Structural Interface 26542 | -3/Garrison | Triggered checkpoint 26682 | -3/Garrison | Garrison Relay disabled 27256 | -3/Garrison | Entered Research 27256 | -2/Research | Accompanied by 1 ally 27256 | -2/Research | Evolved 2 slots: Utility x2 27341 | -2/Research | Spotted B-90 Cyclops 27518 | -2/Research | P-80 Master assimilated allied Warden 9a 27665 | -2/Research | Lost 3 parts (1p1n1u) 27819 | -2/Research | Discovered new exit (range 15) 27934 | -2/Research | Identified exit to Garrison 27934 | -2/Research | Entered Garrison 27934 | -2/Garrison | Accompanied by 1 ally 27941 | -2/Garrison | Expanded RIF knowledge: Threat Obfuscation 28037 | -2/Garrison | Garrison Relay disabled 28134 | -2/Garrison | Triggered checkpoint 28173 | -2/Garrison | Spotted B-90 Cyclops 28234 | -2/Garrison | Destroyed B-90 Cyclops 28370 | -2/Garrison | Triggered checkpoint 28443 | -2/Garrison | Found Unknown Device 28443 | -2/Garrison | Identified Quantum Capacitor 28552 | -2/Garrison | Triggered checkpoint 28596 | -2/Garrison | Garrison Relay disabled 28776 | -2/Garrison | Discovered new exit (range 12) 28874 | -2/Garrison | Triggered checkpoint 29116 | -2/Garrison | Triggered checkpoint 29182 | -2/Garrison | Garrison Relay disabled 29217 | -2/Garrison | Discovered new exit (range 15) 29445 | -2/Garrison | Garrison Relay disabled 29482 | -2/Garrison | Discovered new exit (range 14) 29588 | -2/Garrison | Triggered checkpoint 30492 | -2/Garrison | Triggered checkpoint 31167 | -2/Garrison | Entered Access 31167 | -1/Access | Evolved 2 slots: Utility x2 31245 | -1/Access | Identified exit to Garrison 31245 | -1/Access | Entered Garrison 31348 | -1/Garrison | Garrison Relay disabled 31366 | -1/Garrison | Triggered checkpoint 31368 | -1/Garrison | Triggered checkpoint 31410 | -1/Garrison | Triggered checkpoint 31414 | -1/Garrison | Spotted B-99 Colossus 31419 | -1/Garrison | Assimilated Colossus 10a with formatsys_high 31810 | -1/Garrison | Discovered new exit (range 13) 32150 | -1/Garrison | Found Prototype Ballistic Gun 32151 | -1/Garrison | Identified Multirail 32314 | -1/Garrison | Triggered checkpoint 32362 | -1/Garrison | Garrison Relay disabled 32385 | -1/Garrison | Discovered new exit (range 9) 32530 | -1/Garrison | Triggered checkpoint 32559 | -1/Garrison | Garrison Relay disabled 32596 | -1/Garrison | Phase Generator disabled 32710 | -1/Garrison | Triggered checkpoint 32820 | -1/Garrison | Triggered checkpoint 32872 | -1/Garrison | Triggered checkpoint 32922 | -1/Garrison | Garrison Relay disabled 33018 | -1/Garrison | Discovered new exit (range 14) 33056 | -1/Garrison | Expanded RIF knowledge: Command Fork 33410 | -1/Garrison | Triggered checkpoint 34737 | -1/Garrison | Entered Access 34737 | -1/Access | Accompanied by 7 allies 34987 | -1/Access | First assault squad dispatched 35045 | -1/Access | Garrison activated, responded to threat 35148 | -1/Access | Garrison activated, responded to threat 35405 | -1/Access | Lost 4 parts (2n1u1w) 35470 | -1/Access | System corruption reached 10% 35608 | -1/Access | Found Adv. Powered Armor 35612 | -1/Access | Found Adv. Powered Armor 35626 | -1/Access | Lost 15 parts (2p5n4u4w) 35882 | -1/Access | Spotted B-99 Colossus 36804 | -1/Access | Discovered new exit (range 6) 36819 | -1/Access | Entered Command 37184 | -1/Command | P-80 Master assimilated allied Warden 10f 37195 | -1/Command | P-80 Master assimilated allied Warden 10g 37253 | -1/Command | Lost 4 parts (2p1u1w) 37308 | -1/Command | Found Prototype Device 37308 | -1/Command | Identified Exp. Thermal Shield 37553 | -1/Command | Core integrity fell below 50% 37611 | -1/Command | Core integrity fell below 20% 37625 | -1/Command | Destroyed by L-61 Swordsman with Power Sword Last Messages --------------- 37616_ Exp. Thermal Shield crushed and broken. 37618_ Slug penetrates G-73 Enforcer. 37618_ Slug penetrates B-74 Champion. 37618_ B-74 Champion suffers critical hit. 37618_ Adv. Remote Datajack destroyed. 37618_ Dropped Lrg. Storage Unit. 37618_ Lrg. Storage Unit crushed and broken. 37619_ Dropped Hcp. Storage Unit. 37619_ Hcp. Storage Unit crushed and broken. 37619_ Lrn. Missile Launcher crushed and broken. 37619_ Relay Coupler [NC] crushed and broken. 37619_ Relay Coupler [Sentry] crushed and broken. 37619_ Relay Coupler [Behemoth] crushed and broken. 37619_ Relay Coupler [Grunt] crushed and broken. 37619_ Relay Coupler [Behemoth] crushed and broken. 37619_ Exp. Matter Compressor crushed and broken. 37619_ System Restoration Module crushed and broken. 37619_ H-88 Terminator destroyed. 37620_ Acquired 35 matter. 37624_ Acquired Myomer Leg. Map ----- +----------------------------------------------------+ | ????????????????????????*% ???????????# #??????? | | ??????????????????????[ %* ???????????# #??????? | | ??????????????????? !%[!=%=*##?????????# #??????? | | ????????????????? %[ [*%# ?????????# #??????? | | ?????????????????# %=[=%* ??????????# #??????? | | ??????????????# # ![[ [[% ??????????# #??????? | | ??????????????# # %% %= ??????????# #??????? | | ??????????????# = %= ????#####?# ######## | | ??????????????# [%= [%=?????#![ #?# # | | ??????????????# = %%==?????#=!!#?# + | | ??????????????# = %=[?????#*[ #?# #"" | | ????????????###++ =[=*%########%#### #""" | | ???????????? =%=!%/[=/% +|!!=!!=!#"R | | ??????????? =%%%=%%[%= +!*[%!%=!#""" | | ??????????? %[*[[ ! %"%! *!* #"" | | ??????????? [[!=% =#=% ! # | | ????????????????+###//###h%########!#### # ! | | ????????????????????????#b!#?????# #?# ######## | | ????????????????????????#[!#?????# % #?# +??????? | | ????????????????????????#ll#?????# #?# #??????? | | ????????????????????????#%[#?????#####?# #??????? | | ????????????????????????#gl#???????????# #??????? | | ????????????????????????#gb#???????????# #??????? | | ???????????????????????##b=##??????????? #??????? | | ???????????????????????#lll%#??????????? #??????? | | ???????????????????????#%@[*#??????????? #??????? | | ???????????????????????#[%[!#??????????? ??????? | | ???????????????????????#*[![#???????????? ???????? | | ???????????????????????#%*[[#????????????????????? | | ???????????????????????#==%[#????????????????????? | | ???????????????????????######????????????????????? | | ???????????????????????????????????????????????/?? | | ?????????????????????????????????????????????????? | | ?????????????????????????????????????????????????? | | ?????????????????????????????????????????????????? | | ?????????????????????????????????????????????????? | | ?????????????????????????????????????????????????? | | ?????????????????????????????????????????????????? | | ?????????????????????????????????????????????????? | | ?????????????????????????????????????????????????? | | ?????????????????????????????????????????????????? | | ?????????????????????????????????????????????????? | | ?????????????????????????????????????????????????? | | ?????????????????????????????????????????????????? | | | | | | | | | | | | | +----------------------------------------------------+ Best States ------------- Heat Dissipation 147 Coolant Potential 100 Energy Generation 45 Energy Capacity 900 Matter Stores 700 Matter Capacity 800 Sight Range 20 Robot Scan Range 16 Terrain Scan Range 24 Terrain Scan Density 210 Base Temperature (-) 200 EM Shielding 2 Armor Coverage 900 Resistance: KI 25 Resistance: TH 30 Resistance: EM 20 Core Shielding 30 Propulsion Shielding 33 Weapon Shielding 66 Point Defense Rating 80 Weapon Cycling 25 Evasion (%) 50 Targeting Accuracy 8 Target Analysis 8 Recoil Reduction 4 Energy Filtering 30 Particle Charging 15 Kinecelleration 30 Offensive Hacking 10 Defensive Hacking 10 Relay Coupler Types 289 Relay Coupler Value 7 Item Schematics ----------------- Hcp. Storage Unit | -8/Materials | Scanalyzed Datajack | -8/Materials | Scanalyzed Robot Schematics ------------------ None Fabricated ------------ Nothing Alien Tech Used ----------------- None Achievements -------------- None Challenges ------------ None Game ------ Seed QuantumLegAnalyzer Manual? 0 Play Time 07:22:20 Cumulative 212.1 hours Start 2021.05.06 @ 16:16:17 End 2021.05.09 @ 03:51:11 Sessions 5 Manual Loads 0 Difficulty Rogue Special Mode None Game No. 80 Rogue 80 Adventurer 0 Explorer 0 Win Type - Total 2 Types 2/0/0/0/0/0/0/0/0 Lore% 65 Gallery% 77 Achievement% 57 Wizard Run 0 Options --------- ASCII 0 Keyboard 0 Movement Mouse Keybinds 0 Fullscreen 2 Font 12/Smallcaps Map View 83x54 Tactical HUD 1 Map Filters NONE Filters NONE Steam X RUN: 4ae5ff06-d633-4d71-a15f-4df8762ee0b1